[Event "Titled Tuesday Blitz April 19 Late 2022"]
[White "Bilych, Olexiy"]
[Black "Bluebaum, Matthias"]
[WhiteFideId "14156504"]
[BlackFideId "24651516"]
[WhiteElo "2176"]
[BlackElo "2550"]
[Result "0-1"]
[Round "05"]
[TimeControl "180+1"]
[Date "2022.04.19"]
[WhiteClock "0:00:57"]
[BlackClock "0:00:32"]

1. d4 {[%clk 0:03:00]}  Nf6 {[%clk 0:02:52]} 2. c4 {[%clk 0:03:01]}  e6 {[%clk 0:02:51]} 3. Nc3 {[%clk 0:03:01]}  Bb4 {[%clk 0:02:49]} 4. e3 {[%clk 0:03:01]}  c5 {[%clk 0:02:48]} 5. a3 {[%clk 0:02:58]}  Bxc3+ {[%clk 0:02:47]} 6. bxc3 {[%clk 0:02:58]}  b6 {[%clk 0:02:35]} 7. Nf3 {[%clk 0:02:58]}  Bb7 {[%clk 0:02:35]} 8. Bd3 {[%clk 0:02:57]}  O-O {[%clk 0:02:35]} 9. O-O {[%clk 0:02:56]}  Nc6 {[%clk 0:02:35]} 10. Qe2 {[%clk 0:02:38]}  d6 {[%clk 0:02:28]} 11. e4 {[%clk 0:02:33]}  e5 {[%clk 0:02:27]} 12. d5 {[%clk 0:02:32]}  Ne7 {[%clk 0:02:25]} 13. Nh4 {[%clk 0:02:24]}  Bc8 {[%clk 0:02:19]} 14. f4 {[%clk 0:02:21]}  exf4 {[%clk 0:02:17]} 15. Bxf4 {[%clk 0:02:21]}  Bg4 {[%clk 0:02:10]} 16. Qf2 {[%clk 0:02:15]}  Nh5 {[%clk 0:02:08]} 17. Bd2 {[%clk 0:02:08]}  Ng6 {[%clk 0:02:06]} 18. Nxg6 {[%clk 0:01:50]}  fxg6 {[%clk 0:02:05]} 19. Qe3 {[%clk 0:01:47]}  Qe7 {[%clk 0:02:03]} 20. Qg5 {[%clk 0:01:41]}  Qxg5 {[%clk 0:01:51]} 21. Bxg5 {[%clk 0:01:42]}  Rae8 {[%clk 0:01:51]} 22. Rxf8+ {[%clk 0:01:39]}  Kxf8 {[%clk 0:01:52]} 23. Rf1+ {[%clk 0:01:38]}  Kg8 {[%clk 0:01:52]} 24. h3 {[%clk 0:01:35]}  Bc8 {[%clk 0:01:27]} 25. g4 {[%clk 0:01:34]}  h6 {[%clk 0:01:13]} 26. gxh5 {[%clk 0:01:19]}  hxg5 {[%clk 0:01:11]} 27. hxg6 {[%clk 0:01:20]}  Rf8 {[%clk 0:01:06]} 28. Rxf8+ {[%clk 0:01:18]}  Kxf8 {[%clk 0:01:07]} 29. Kg2 {[%clk 0:01:16]}  Ke7 {[%clk 0:01:06]} 30. e5 {[%clk 0:01:12]}  dxe5 {[%clk 0:01:07]} 31. Kg3 {[%clk 0:01:12]}  Kf6 {[%clk 0:01:06]} 32. Be4 {[%clk 0:01:06]}  Bd7 {[%clk 0:00:46]} 33. d6 {[%clk 0:00:57]}  Ke6 {[%clk 0:00:40]} 34. Kg4 {[%clk 0:00:57]}  Kxd6+ {[%clk 0:00:41]} 35. Bf5 {[%clk 0:00:57]}  e4 {[%clk 0:00:32]} 0-1


[Site "https://www.chess.com"]

[Event "Titled Tuesday Blitz April 19 Late 2022"]
[White "Buchenau, Frank"]
[Black "Ladan, Nicholas"]
[WhiteFideId "4604350"]
[BlackFideId "30918855"]
[WhiteElo "2193"]
[BlackElo "2167"]
[Result "1-0"]
[Round "05"]
[TimeControl "180+1"]
[Date "2022.04.19"]
[WhiteClock "0:00:37"]
[BlackClock "0:00:16"]

1. e4 {[%clk 0:03:00]}  e5 {[%clk 0:03:00]} 2. Bc4 {[%clk 0:03:00]}  Nc6 {[%clk 0:03:00]} 3. Nf3 {[%clk 0:03:00]}  Nf6 {[%clk 0:03:00]} 4. d3 {[%clk 0:02:59]}  h6 {[%clk 0:02:59]} 5. O-O {[%clk 0:03:00]}  d6 {[%clk 0:02:59]} 6. Re1 {[%clk 0:02:59]}  g6 {[%clk 0:02:59]} 7. d4 {[%clk 0:02:59]}  Qe7 {[%clk 0:02:57]} 8. Nc3 {[%clk 0:02:55]}  Bg7 {[%clk 0:02:56]} 9. Nd5 {[%clk 0:02:55]}  Nxd5 {[%clk 0:02:45]} 10. exd5 {[%clk 0:02:54]}  Na5 {[%clk 0:02:44]} 11. dxe5 {[%clk 0:02:42]}  dxe5 {[%clk 0:02:44]} 12. Bb5+ {[%clk 0:02:38]}  c6 {[%clk 0:02:43]} 13. dxc6 {[%clk 0:02:36]}  bxc6 {[%clk 0:02:44]} 14. Ba4 {[%clk 0:02:15]}  O-O {[%clk 0:02:42]} 15. Bd2 {[%clk 0:02:13]}  Nc4 {[%clk 0:02:40]} 16. Bc3 {[%clk 0:02:09]}  Bg4 {[%clk 0:02:29]} 17. h3 {[%clk 0:02:07]}  Bf5 {[%clk 0:02:06]} 18. Bb3 {[%clk 0:01:57]}  Qc5 {[%clk 0:01:58]} 19. Qe2 {[%clk 0:01:55]}  Be6 {[%clk 0:01:44]} 20. Nxe5 {[%clk 0:01:49]}  Nxe5 {[%clk 0:01:37]} 21. Bxe5 {[%clk 0:01:49]}  Bxb3 {[%clk 0:01:36]} 22. Bxg7 {[%clk 0:01:46]}  Kxg7 {[%clk 0:01:32]} 23. axb3 {[%clk 0:01:45]}  Rfe8 {[%clk 0:01:30]} 24. Qc4 {[%clk 0:01:26]}  Qxc4 {[%clk 0:01:16]} 25. bxc4 {[%clk 0:01:27]}  Rxe1+ {[%clk 0:01:16]} 26. Rxe1 {[%clk 0:01:26]}  Rd8 {[%clk 0:01:17]} 27. Re2 {[%clk 0:01:19]}  Kf6 {[%clk 0:01:16]} 28. Kh2 {[%clk 0:01:18]}  h5 {[%clk 0:01:16]} 29. Kg3 {[%clk 0:01:18]}  h4+ {[%clk 0:01:11]} 30. Kf3 {[%clk 0:01:15]}  g5 {[%clk 0:01:08]} 31. Ke3 {[%clk 0:01:15]}  Kf5 {[%clk 0:01:04]} 32. Rd2 {[%clk 0:01:14]}  Re8+ {[%clk 0:01:04]} 33. Kf3 {[%clk 0:01:12]}  Re7 {[%clk 0:01:03]} 34. Rd6 {[%clk 0:01:10]}  Rb7 {[%clk 0:00:49]} 35. b3 {[%clk 0:01:09]}  Rc7 {[%clk 0:00:42]} 36. Ke3 {[%clk 0:01:09]}  Ke5 {[%clk 0:00:42]} 37. c5 {[%clk 0:01:09]}  f5 {[%clk 0:00:41]} 38. b4 {[%clk 0:00:58]}  a5 {[%clk 0:00:38]} 39. bxa5 {[%clk 0:00:56]}  Ra7 {[%clk 0:00:38]} 40. Rxc6 {[%clk 0:00:56]}  Rxa5 {[%clk 0:00:38]} 41. Rc8 {[%clk 0:00:54]}  Ra3+ {[%clk 0:00:33]} 42. Kd2 {[%clk 0:00:53]}  g4 {[%clk 0:00:32]} 43. hxg4 {[%clk 0:00:44]}  fxg4 {[%clk 0:00:33]} 44. Rd8 {[%clk 0:00:42]}  h3 {[%clk 0:00:32]} 45. gxh3 {[%clk 0:00:42]}  gxh3 {[%clk 0:00:33]} 46. c6 {[%clk 0:00:42]}  Ra7 {[%clk 0:00:18]} 47. Rd7 {[%clk 0:00:40]}  Rxd7+ {[%clk 0:00:17]} 48. cxd7 {[%clk 0:00:40]}  h2 {[%clk 0:00:18]} 49. d8=Q {[%clk 0:00:40]}  h1=Q {[%clk 0:00:18]} 50. Qc7+ {[%clk 0:00:40]}  Kd4 {[%clk 0:00:18]} 51. Qd6+ {[%clk 0:00:39]}  Kc4 {[%clk 0:00:18]} 52. Qd3+ {[%clk 0:00:38]}  Kb4 {[%clk 0:00:19]} 53. Qd4+ {[%clk 0:00:37]}  Ka3 {[%clk 0:00:19]} 54. f4 {[%clk 0:00:37]}  Qg2+ {[%clk 0:00:17]} 55. Kd3 {[%clk 0:00:37]}  Qf1+ {[%clk 0:00:17]} 56. Ke4 {[%clk 0:00:37]}  Qe2+ {[%clk 0:00:16]} 57. Qe3+ {[%clk 0:00:37]} 1-0


[Site "https://www.chess.com"]

[Event "Titled Tuesday Blitz April 19 Late 2022"]
[White "Burke, Paul"]
[Black "Bachmann, Axel"]
[WhiteFideId "2605767"]
[BlackFideId "3700488"]
[WhiteElo "1881"]
[BlackElo "2587"]
[Result "0-1"]
[Round "05"]
[TimeControl "180+1"]
[Date "2022.04.19"]
[WhiteClock "0:00:06"]
[BlackClock "0:00:04"]

1. e4 {[%clk 0:03:00]}  c5 {[%clk 0:02:53]} 2. d4 {[%clk 0:03:00]}  cxd4 {[%clk 0:02:53]} 3. c3 {[%clk 0:03:00]}  dxc3 {[%clk 0:02:54]} 4. Nxc3 {[%clk 0:03:00]}  Nc6 {[%clk 0:02:53]} 5. Nf3 {[%clk 0:03:00]}  d6 {[%clk 0:02:53]} 6. Bc4 {[%clk 0:02:59]}  a6 {[%clk 0:02:54]} 7. O-O {[%clk 0:02:57]}  Nf6 {[%clk 0:02:53]} 8. Qe2 {[%clk 0:02:54]}  Bg4 {[%clk 0:02:53]} 9. Be3 {[%clk 0:02:52]}  Bxf3 {[%clk 0:02:45]} 10. gxf3 {[%clk 0:02:49]}  e6 {[%clk 0:02:31]} 11. Rfd1 {[%clk 0:02:47]}  Be7 {[%clk 0:02:30]} 12. f4 {[%clk 0:02:46]}  Qb8 {[%clk 0:02:30]} 13. Bb6 {[%clk 0:02:42]}  O-O {[%clk 0:02:27]} 14. Rac1 {[%clk 0:02:40]}  Re8 {[%clk 0:02:16]} 15. Bd3 {[%clk 0:02:38]}  d5 {[%clk 0:02:11]} 16. e5 {[%clk 0:02:37]}  Nd7 {[%clk 0:02:07]} 17. Na4 {[%clk 0:02:13]}  g6 {[%clk 0:02:02]} 18. Be3 {[%clk 0:02:06]}  Bf8 {[%clk 0:01:44]} 19. Bb1 {[%clk 0:02:00]}  Rc8 {[%clk 0:01:39]} 20. Nb6 {[%clk 0:01:54]}  Nxb6 {[%clk 0:01:35]} 21. Bxb6 {[%clk 0:01:54]}  Ne7 {[%clk 0:01:32]} 22. h4 {[%clk 0:01:33]}  Rc6 {[%clk 0:01:23]} 23. Bd4 {[%clk 0:01:28]}  Nf5 {[%clk 0:01:13]} 24. Bxf5 {[%clk 0:01:26]}  gxf5 {[%clk 0:01:02]} 25. Kh2 {[%clk 0:01:19]}  Bg7 {[%clk 0:00:34]} 26. Rg1 {[%clk 0:01:14]}  Rxc1 {[%clk 0:00:29]} 27. Rxc1 {[%clk 0:01:11]}  Qd8 {[%clk 0:00:27]} 28. Qh5 {[%clk 0:01:08]}  Rc8 {[%clk 0:00:22]} 29. Rg1 {[%clk 0:01:07]}  Rc4 {[%clk 0:00:17]} 30. Be3 {[%clk 0:00:52]}  Qf8 {[%clk 0:00:12]} 31. Qg5 {[%clk 0:00:31]}  Kh8 {[%clk 0:00:11]} 32. h5 {[%clk 0:00:27]}  h6 {[%clk 0:00:11]} 33. Qh4 {[%clk 0:00:23]}  d4 {[%clk 0:00:09]} 34. Bc1 {[%clk 0:00:19]}  d3 {[%clk 0:00:08]} 35. Bd2 {[%clk 0:00:16]}  Bxe5 {[%clk 0:00:08]} 36. Qg3 {[%clk 0:00:10]}  Bg7 {[%clk 0:00:04]} 37. Qxd3 {[%clk 0:00:06]}  Re4 {[%clk 0:00:04]} 0-1


[Site "https://www.chess.com"]

[Event "Titled Tuesday Blitz April 19 Late 2022"]
[White "Constantinou, Peter"]
[Black "Potapova, Margarita"]
[WhiteFideId "413038"]
[BlackFideId "14126869"]
[WhiteElo "2230"]
[BlackElo "2216"]
[Result "0-1"]
[Round "05"]
[TimeControl "180+1"]
[Date "2022.04.19"]
[WhiteClock "0:00:17"]
[BlackClock "0:00:24"]

1. e4 {[%clk 0:03:00]}  c5 {[%clk 0:02:56]} 2. Nf3 {[%clk 0:03:01]}  d6 {[%clk 0:02:56]} 3. Bb5+ {[%clk 0:03:01]}  Bd7 {[%clk 0:02:53]} 4. Bxd7+ {[%clk 0:03:01]}  Qxd7 {[%clk 0:02:54]} 5. c4 {[%clk 0:03:02]}  Nc6 {[%clk 0:02:49]} 6. Nc3 {[%clk 0:02:58]}  g6 {[%clk 0:02:49]} 7. O-O {[%clk 0:02:50]}  Bg7 {[%clk 0:02:49]} 8. d3 {[%clk 0:02:48]}  Nf6 {[%clk 0:02:46]} 9. Rb1 {[%clk 0:02:45]}  O-O {[%clk 0:02:46]} 10. a3 {[%clk 0:02:45]}  Ne8 {[%clk 0:02:40]} 11. Be3 {[%clk 0:02:44]}  Rc8 {[%clk 0:02:36]} 12. Qd2 {[%clk 0:02:42]}  Nc7 {[%clk 0:02:32]} 13. d4 {[%clk 0:02:34]}  cxd4 {[%clk 0:02:31]} 14. Nxd4 {[%clk 0:02:35]}  Ne6 {[%clk 0:02:14]} 15. Nxe6 {[%clk 0:02:25]}  Qxe6 {[%clk 0:02:09]} 16. b3 {[%clk 0:02:26]}  Rfd8 {[%clk 0:01:55]} 17. Rfc1 {[%clk 0:02:21]}  Bxc3 {[%clk 0:01:52]} 18. Qxc3 {[%clk 0:02:19]}  Qxe4 {[%clk 0:01:52]} 19. Re1 {[%clk 0:02:14]}  Qe5 {[%clk 0:01:49]} 20. Qd3 {[%clk 0:02:14]}  Qf5 {[%clk 0:01:46]} 21. Qc3 {[%clk 0:01:48]}  Qe5 {[%clk 0:01:37]} 22. Qd3 {[%clk 0:01:48]}  Qf5 {[%clk 0:01:37]} 23. Qc3 {[%clk 0:01:48]}  a6 {[%clk 0:01:36]} 24. Rbd1 {[%clk 0:01:43]}  e5 {[%clk 0:01:29]} 25. Bb6 {[%clk 0:01:41]}  Rd7 {[%clk 0:01:28]} 26. Rd2 {[%clk 0:01:31]}  Qe6 {[%clk 0:01:16]} 27. Red1 {[%clk 0:01:31]}  Ne7 {[%clk 0:01:14]} 28. Qf3 {[%clk 0:01:14]}  d5 {[%clk 0:01:03]} 29. h4 {[%clk 0:01:04]}  Qxb6 {[%clk 0:01:02]} 30. cxd5 {[%clk 0:01:01]}  Nf5 {[%clk 0:00:58]} 31. h5 {[%clk 0:01:01]}  Nd4 {[%clk 0:00:57]} 32. Qg4 {[%clk 0:01:01]}  Rcd8 {[%clk 0:00:53]} 33. h6 {[%clk 0:01:00]}  Qf6 {[%clk 0:00:52]} 34. Rd3 {[%clk 0:00:55]}  Qf5 {[%clk 0:00:51]} 35. Qh4 {[%clk 0:00:47]}  Qh5 {[%clk 0:00:51]} 36. Qf6 {[%clk 0:00:41]}  Qxh6 {[%clk 0:00:45]} 37. Qxe5 {[%clk 0:00:40]}  Nf5 {[%clk 0:00:45]} 38. d6 {[%clk 0:00:31]}  Qg7 {[%clk 0:00:39]} 39. Qf4 {[%clk 0:00:27]}  h5 {[%clk 0:00:39]} 40. f3 {[%clk 0:00:19]}  Qh6 {[%clk 0:00:36]} 41. Qe5 {[%clk 0:00:16]}  h4 {[%clk 0:00:30]} 42. Rd5 {[%clk 0:00:15]}  Qe3+ {[%clk 0:00:29]} 43. Kh2 {[%clk 0:00:15]}  Qxe5+ {[%clk 0:00:28]} 44. Rxe5 {[%clk 0:00:15]}  Rxd6 {[%clk 0:00:29]} 45. Rc1 {[%clk 0:00:16]}  Rc6 {[%clk 0:00:28]} 46. Rce1 {[%clk 0:00:16]}  Kg7 {[%clk 0:00:27]} 47. b4 {[%clk 0:00:16]}  Rd2 {[%clk 0:00:27]} 48. b5 {[%clk 0:00:16]}  Rcc2 {[%clk 0:00:26]} 49. Rg1 {[%clk 0:00:17]}  a5 {[%clk 0:00:24]} 0-1


[Site "https://www.chess.com"]

[Event "Titled Tuesday Blitz April 19 Late 2022"]
[White "Debray, Christopher"]
[Black "Wieczorek, Oskar"]
[WhiteFideId "630810"]
[BlackFideId "1133950"]
[WhiteElo "2377"]
[BlackElo "2319"]
[Result "0-1"]
[Round "05"]
[TimeControl "180+1"]
[Date "2022.04.19"]
[WhiteClock "0:02:52"]
[BlackClock "0:02:59"]

1. d4 {[%clk 0:02:58]}  Nf6 {[%clk 0:03:00]} 2. c4 {[%clk 0:02:57]}  c5 {[%clk 0:03:00]} 3. Nf3 {[%clk 0:02:57]}  cxd4 {[%clk 0:03:00]} 4. Nxd4 {[%clk 0:02:58]}  g6 {[%clk 0:03:00]} 5. Nc3 {[%clk 0:02:56]}  Nc6 {[%clk 0:03:00]} 6. g3 {[%clk 0:02:57]}  d6 {[%clk 0:03:00]} 7. Bg2 {[%clk 0:02:57]}  Bd7 {[%clk 0:03:01]} 8. O-O {[%clk 0:02:58]}  h5 {[%clk 0:03:01]} 9. h3 {[%clk 0:02:57]}  Bg7 {[%clk 0:03:01]} 10. Bg5 {[%clk 0:02:55]}  Qc8 {[%clk 0:02:59]} 11. Kh2 {[%clk 0:02:52]}  Nxd4 {[%clk 0:02:59]} 12. Qxd4 {[%clk 0:02:52]}  Ng4+ {[%clk 0:02:59]} 0-1


[Site "https://www.chess.com"]

[Event "Titled Tuesday Blitz April 19 Late 2022"]
[White "Ezat, Mohamed"]
[Black "Suleymanli, Aydin"]
[WhiteFideId "10600906"]
[BlackFideId "13413937"]
[WhiteElo "2386"]
[BlackElo "2481"]
[Result "0-1"]
[Round "05"]
[TimeControl "180+1"]
[Date "2022.04.19"]
[WhiteClock "0:00:22"]
[BlackClock "0:00:28"]

1. d4 {[%clk 0:03:00]}  Nf6 {[%clk 0:03:00]} 2. c4 {[%clk 0:03:00]}  e6 {[%clk 0:02:59]} 3. Nc3 {[%clk 0:02:59]}  Bb4 {[%clk 0:02:53]} 4. e3 {[%clk 0:02:59]}  c5 {[%clk 0:02:50]} 5. a3 {[%clk 0:02:58]}  Bxc3+ {[%clk 0:02:50]} 6. bxc3 {[%clk 0:02:59]}  Qa5 {[%clk 0:02:49]} 7. Bd2 {[%clk 0:02:59]}  b6 {[%clk 0:02:49]} 8. Bd3 {[%clk 0:02:58]}  Ba6 {[%clk 0:02:46]} 9. Ne2 {[%clk 0:02:57]}  d5 {[%clk 0:02:45]} 10. O-O {[%clk 0:02:45]}  Nbd7 {[%clk 0:02:27]} 11. Nf4 {[%clk 0:02:34]}  Bxc4 {[%clk 0:02:24]} 12. Bxc4 {[%clk 0:02:34]}  dxc4 {[%clk 0:02:25]} 13. Qf3 {[%clk 0:02:23]}  O-O {[%clk 0:02:24]} 14. Rfd1 {[%clk 0:02:19]}  e5 {[%clk 0:02:22]} 15. Nd5 {[%clk 0:02:11]}  e4 {[%clk 0:02:20]} 16. Nxf6+ {[%clk 0:02:11]}  Nxf6 {[%clk 0:02:21]} 17. Qe2 {[%clk 0:02:09]}  Qa4 {[%clk 0:02:15]} 18. f3 {[%clk 0:01:59]}  Rfe8 {[%clk 0:02:09]} 19. Be1 {[%clk 0:01:58]}  exf3 {[%clk 0:01:58]} 20. Qxf3 {[%clk 0:01:56]}  Rac8 {[%clk 0:01:56]} 21. d5 {[%clk 0:01:48]}  Ne4 {[%clk 0:01:52]} 22. d6 {[%clk 0:01:46]}  Rcd8 {[%clk 0:01:47]} 23. Qf4 {[%clk 0:01:31]}  Qc6 {[%clk 0:01:39]} 24. a4 {[%clk 0:01:19]}  Rxd6 {[%clk 0:01:31]} 25. a5 {[%clk 0:01:19]}  Rf6 {[%clk 0:01:24]} 26. Qg4 {[%clk 0:01:14]}  Rg6 {[%clk 0:01:23]} 27. Qf3 {[%clk 0:01:08]}  b5 {[%clk 0:01:14]} 28. a6 {[%clk 0:01:07]}  h5 {[%clk 0:01:09]} 29. Rab1 {[%clk 0:01:05]}  h4 {[%clk 0:01:02]} 30. h3 {[%clk 0:00:58]}  Qxa6 {[%clk 0:00:45]} 31. Rd7 {[%clk 0:00:58]}  Qe6 {[%clk 0:00:42]} 32. Rbd1 {[%clk 0:00:49]}  Ng5 {[%clk 0:00:41]} 33. Qh5 {[%clk 0:00:43]}  Nxh3+ {[%clk 0:00:40]} 34. Kh1 {[%clk 0:00:44]}  Qe4 {[%clk 0:00:34]} 35. R1d2 {[%clk 0:00:37]}  Qxe3 {[%clk 0:00:31]} 36. Kh2 {[%clk 0:00:23]}  Qg1+ {[%clk 0:00:27]} 37. Kxh3 {[%clk 0:00:22]}  Qh1# {[%clk 0:00:28]} 0-1


[Site "https://www.chess.com"]

[Event "Titled Tuesday Blitz April 19 Late 2022"]
[White "Hasangatin, Ramil"]
[Black "Shimanov, Aleksandr"]
[WhiteFideId "4122160"]
[BlackFideId "4198603"]
[WhiteElo "2375"]
[BlackElo "2636"]
[Result "0-1"]
[Round "05"]
[TimeControl "180+1"]
[Date "2022.04.19"]
[WhiteClock "0:00:07"]
[BlackClock "0:00:59"]

1. e4 {[%clk 0:03:00]}  d5 {[%clk 0:02:56]} 2. exd5 {[%clk 0:03:00]}  Qxd5 {[%clk 0:02:57]} 3. Nf3 {[%clk 0:03:01]}  Bg4 {[%clk 0:02:57]} 4. Be2 {[%clk 0:03:01]}  Nc6 {[%clk 0:02:57]} 5. d4 {[%clk 0:03:01]}  O-O-O {[%clk 0:02:55]} 6. Be3 {[%clk 0:03:01]}  e5 {[%clk 0:02:41]} 7. c4 {[%clk 0:03:00]}  Qa5+ {[%clk 0:02:40]} 8. Bd2 {[%clk 0:03:01]}  Bb4 {[%clk 0:02:38]} 9. d5 {[%clk 0:03:00]}  Bxf3 {[%clk 0:02:36]} 10. Bxf3 {[%clk 0:02:57]}  Nd4 {[%clk 0:02:36]} 11. Nc3 {[%clk 0:02:50]}  Qa6 {[%clk 0:02:26]} 12. b3 {[%clk 0:02:15]}  Qa5 {[%clk 0:02:01]} 13. Rc1 {[%clk 0:02:14]}  f5 {[%clk 0:02:01]} 14. O-O {[%clk 0:02:00]}  Nf6 {[%clk 0:02:01]} 15. g3 {[%clk 0:01:41]}  Rhe8 {[%clk 0:01:53]} 16. Bg2 {[%clk 0:01:40]}  Kb8 {[%clk 0:01:50]} 17. Re1 {[%clk 0:01:28]}  h6 {[%clk 0:01:49]} 18. Nb1 {[%clk 0:01:08]}  Bxd2 {[%clk 0:01:44]} 19. Qxd2 {[%clk 0:01:07]}  Qxd2 {[%clk 0:01:43]} 20. Nxd2 {[%clk 0:01:08]}  c6 {[%clk 0:01:43]} 21. dxc6 {[%clk 0:01:02]}  bxc6 {[%clk 0:01:41]} 22. Nf1 {[%clk 0:00:55]}  e4 {[%clk 0:01:39]} 23. Ne3 {[%clk 0:00:54]}  g5 {[%clk 0:01:39]} 24. Nc2 {[%clk 0:00:46]}  c5 {[%clk 0:01:39]} 25. Ne3 {[%clk 0:00:42]}  f4 {[%clk 0:01:38]} 26. Nd5 {[%clk 0:00:24]}  Nxd5 {[%clk 0:01:38]} 27. cxd5 {[%clk 0:00:24]}  f3 {[%clk 0:01:28]} 28. Bf1 {[%clk 0:00:24]}  Rxd5 {[%clk 0:01:29]} 29. Bc4 {[%clk 0:00:20]}  Rde5 {[%clk 0:01:29]} 30. Kf1 {[%clk 0:00:17]}  R8e7 {[%clk 0:01:26]} 31. Rb1 {[%clk 0:00:13]}  a5 {[%clk 0:01:26]} 32. a3 {[%clk 0:00:11]}  Ka7 {[%clk 0:01:03]} 33. b4 {[%clk 0:00:11]}  Nc2 {[%clk 0:01:02]} 34. Red1 {[%clk 0:00:10]}  e3 {[%clk 0:01:00]} 35. Rd6 {[%clk 0:00:07]}  e2+ {[%clk 0:00:59]} 0-1


[Site "https://www.chess.com"]

[Event "Titled Tuesday Blitz April 19 Late 2022"]
[White "Ibadov, Dashgyn"]
[Black "Ostrovskiy, Aleksandr"]
[WhiteFideId "24107514"]
[BlackFideId "2034239"]
[WhiteElo "2138"]
[BlackElo "2340"]
[Result "1-0"]
[Round "05"]
[TimeControl "180+1"]
[Date "2022.04.19"]
[WhiteClock "0:00:23"]
[BlackClock "0:00:19"]

1. e4 {[%clk 0:03:00]}  d5 {[%clk 0:02:59]} 2. exd5 {[%clk 0:03:00]}  Nf6 {[%clk 0:03:00]} 3. Nf3 {[%clk 0:03:00]}  Bg4 {[%clk 0:03:00]} 4. Be2 {[%clk 0:02:50]}  Qxd5 {[%clk 0:03:00]} 5. Nc3 {[%clk 0:02:50]}  Qf5 {[%clk 0:03:00]} 6. h3 {[%clk 0:02:44]}  Bxf3 {[%clk 0:02:59]} 7. Bxf3 {[%clk 0:02:45]}  Nc6 {[%clk 0:03:00]} 8. Bxc6+ {[%clk 0:02:44]}  bxc6 {[%clk 0:03:01]} 9. O-O {[%clk 0:02:42]}  e6 {[%clk 0:03:01]} 10. d3 {[%clk 0:02:40]}  h5 {[%clk 0:02:53]} 11. Qe2 {[%clk 0:02:35]}  g5 {[%clk 0:02:49]} 12. Ne4 {[%clk 0:02:35]}  g4 {[%clk 0:02:50]} 13. Nxf6+ {[%clk 0:02:33]}  Qxf6 {[%clk 0:02:50]} 14. Qe4 {[%clk 0:02:22]}  Kd7 {[%clk 0:02:50]} 15. Qf4 {[%clk 0:01:13]}  Qxf4 {[%clk 0:02:45]} 16. Bxf4 {[%clk 0:01:14]}  gxh3 {[%clk 0:02:46]} 17. gxh3 {[%clk 0:01:14]}  Bd6 {[%clk 0:02:46]} 18. Be3 {[%clk 0:01:08]}  a5 {[%clk 0:02:39]} 19. a4 {[%clk 0:01:07]}  Rab8 {[%clk 0:02:36]} 20. b3 {[%clk 0:01:08]}  Rb4 {[%clk 0:02:34]} 21. d4 {[%clk 0:01:07]}  Ke7 {[%clk 0:02:27]} 22. Kg2 {[%clk 0:01:06]}  Rg8+ {[%clk 0:02:26]} 23. Kf3 {[%clk 0:01:06]}  Rbb8 {[%clk 0:02:16]} 24. Rg1 {[%clk 0:01:03]}  Kf6 {[%clk 0:02:16]} 25. Bd2 {[%clk 0:00:59]}  Rxg1 {[%clk 0:02:09]} 26. Rxg1 {[%clk 0:01:00]}  Bb4 {[%clk 0:02:10]} 27. Bg5+ {[%clk 0:00:51]}  Kf5 {[%clk 0:02:10]} 28. Bf4 {[%clk 0:00:51]}  f6 {[%clk 0:02:00]} 29. Bxc7 {[%clk 0:00:49]}  Rb7 {[%clk 0:01:57]} 30. Bf4 {[%clk 0:00:47]}  Rd7 {[%clk 0:01:53]} 31. Be3 {[%clk 0:00:46]}  Bc3 {[%clk 0:01:54]} 32. Rg8 {[%clk 0:00:32]}  Bxd4 {[%clk 0:01:49]} 33. Rh8 {[%clk 0:00:28]}  Bxe3 {[%clk 0:01:44]} 34. Kxe3 {[%clk 0:00:23]}  Kg5 {[%clk 0:01:40]} 35. f4+ {[%clk 0:00:23]}  Kh4 {[%clk 0:01:40]} 36. Rh6 {[%clk 0:00:20]}  Rf7 {[%clk 0:01:02]} 37. Ke4 {[%clk 0:00:19]}  c5 {[%clk 0:00:57]} 38. Rh8 {[%clk 0:00:14]}  Rd7 {[%clk 0:00:46]} 39. Rh6 {[%clk 0:00:14]}  Rd2 {[%clk 0:00:35]} 40. Rxf6 {[%clk 0:00:13]}  Rxc2 {[%clk 0:00:35]} 41. Rxe6 {[%clk 0:00:14]}  Kxh3 {[%clk 0:00:35]} 42. f5 {[%clk 0:00:13]}  Re2+ {[%clk 0:00:30]} 43. Kd5 {[%clk 0:00:12]}  Rf2 {[%clk 0:00:28]} 44. f6 {[%clk 0:00:12]}  Rf5+ {[%clk 0:00:25]} 45. Kd6 {[%clk 0:00:12]}  Rf3 {[%clk 0:00:08]} 46. Ke7 {[%clk 0:00:12]}  Rxb3 {[%clk 0:00:08]} 47. f7 {[%clk 0:00:12]}  Rb7+ {[%clk 0:00:08]} 48. Ke8 {[%clk 0:00:12]}  Rb8+ {[%clk 0:00:08]} 49. Ke7 {[%clk 0:00:12]}  Rb7+ {[%clk 0:00:09]} 50. Kf6 {[%clk 0:00:12]}  Rb1 {[%clk 0:00:05]} 51. f8=Q {[%clk 0:00:12]}  Rf1+ {[%clk 0:00:06]} 52. Ke7 {[%clk 0:00:12]}  Rxf8 {[%clk 0:00:07]} 53. Kxf8 {[%clk 0:00:13]}  h4 {[%clk 0:00:07]} 54. Rc6 {[%clk 0:00:13]}  Kg2 {[%clk 0:00:08]} 55. Rxc5 {[%clk 0:00:13]}  h3 {[%clk 0:00:09]} 56. Rd5 {[%clk 0:00:14]}  h2 {[%clk 0:00:09]} 57. Rg5+ {[%clk 0:00:14]}  Kf2 {[%clk 0:00:10]} 58. Rh5 {[%clk 0:00:14]}  Kg2 {[%clk 0:00:10]} 59. Ke7 {[%clk 0:00:14]}  h1=Q {[%clk 0:00:10]} 60. Rxh1 {[%clk 0:00:15]}  Kxh1 {[%clk 0:00:11]} 61. Kd6 {[%clk 0:00:15]}  Kg2 {[%clk 0:00:12]} 62. Kc5 {[%clk 0:00:16]}  Kf3 {[%clk 0:00:13]} 63. Kb5 {[%clk 0:00:17]}  Ke4 {[%clk 0:00:14]} 64. Kxa5 {[%clk 0:00:18]}  Kd5 {[%clk 0:00:14]} 65. Kb6 {[%clk 0:00:19]}  Kd6 {[%clk 0:00:15]} 66. a5 {[%clk 0:00:19]}  Kd7 {[%clk 0:00:16]} 67. Kb7 {[%clk 0:00:20]}  Kd6 {[%clk 0:00:16]} 68. a6 {[%clk 0:00:21]}  Kc5 {[%clk 0:00:17]} 69. a7 {[%clk 0:00:22]}  Kb5 {[%clk 0:00:18]} 70. a8=Q {[%clk 0:00:23]}  Kc5 {[%clk 0:00:19]} 71. Qc8+ {[%clk 0:00:23]} 1-0


[Site "https://www.chess.com"]